[Event "Titled Tuesday Blitz June 21 Late 2022"]
[White "Abarca Gonzalez, Nicolas"]
[Black "Svane, Rasmus"]
[WhiteFideId "3409422"]
[BlackFideId "4657101"]
[WhiteElo "2504"]
[BlackElo "2674"]
[Result "0-1"]
[Round "10"]
[TimeControl "180+1"]
[Date "2022.06.21"]
[WhiteClock "0:00:16"]
[BlackClock "0:00:07"]

1. e4 {[%clk 0:02:57]}  c6 {[%clk 0:03:00]} 2. d4 {[%clk 0:02:56]}  d5 {[%clk 0:03:01]} 3. exd5 {[%clk 0:02:57]}  cxd5 {[%clk 0:03:02]} 4. c4 {[%clk 0:02:57]}  Nf6 {[%clk 0:03:02]} 5. Nc3 {[%clk 0:02:58]}  Nc6 {[%clk 0:03:02]} 6. Nf3 {[%clk 0:02:59]}  a6 {[%clk 0:03:03]} 7. cxd5 {[%clk 0:02:59]}  Nxd5 {[%clk 0:03:03]} 8. Bd3 {[%clk 0:03:00]}  g6 {[%clk 0:03:03]} 9. O-O {[%clk 0:02:51]}  Bg7 {[%clk 0:03:03]} 10. Re1 {[%clk 0:02:52]}  O-O {[%clk 0:03:02]} 11. Be4 {[%clk 0:02:49]}  Be6 {[%clk 0:02:56]} 12. Bg5 {[%clk 0:02:48]}  Re8 {[%clk 0:02:53]} 13. Qd2 {[%clk 0:02:47]}  Rc8 {[%clk 0:02:52]} 14. Rad1 {[%clk 0:02:46]}  Nxc3 {[%clk 0:02:47]} 15. bxc3 {[%clk 0:02:45]}  Bd5 {[%clk 0:02:35]} 16. Bh6 {[%clk 0:02:43]}  Bxe4 {[%clk 0:02:18]} 17. Rxe4 {[%clk 0:02:41]}  Qd5 {[%clk 0:02:19]} 18. Rde1 {[%clk 0:02:32]}  Bh8 {[%clk 0:02:13]} 19. h4 {[%clk 0:02:28]}  b5 {[%clk 0:01:59]} 20. Qf4 {[%clk 0:02:10]}  a5 {[%clk 0:01:37]} 21. Ne5 {[%clk 0:02:07]}  Nxe5 {[%clk 0:01:33]} 22. dxe5 {[%clk 0:02:08]}  Qe6 {[%clk 0:01:17]} 23. R1e3 {[%clk 0:01:39]}  Rc5 {[%clk 0:01:10]} 24. h5 {[%clk 0:01:36]}  Rec8 {[%clk 0:01:07]} 25. Qg3 {[%clk 0:01:31]}  Rc4 {[%clk 0:01:03]} 26. Rxc4 {[%clk 0:01:24]}  Rxc4 {[%clk 0:01:03]} 27. Rd3 {[%clk 0:01:22]}  Rc8 {[%clk 0:01:03]} 28. f4 {[%clk 0:01:15]}  Bg7 {[%clk 0:00:51]} 29. Bxg7 {[%clk 0:01:14]}  Kxg7 {[%clk 0:00:52]} 30. Qh4 {[%clk 0:01:15]}  h6 {[%clk 0:00:24]} 31. hxg6 {[%clk 0:01:11]}  fxg6 {[%clk 0:00:25]} 32. Rh3 {[%clk 0:01:11]}  Rh8 {[%clk 0:00:24]} 33. Rd3 {[%clk 0:01:08]}  Kf7 {[%clk 0:00:22]} 34. g4 {[%clk 0:01:07]}  Qxa2 {[%clk 0:00:20]} 35. Rf3 {[%clk 0:00:58]}  Qd5 {[%clk 0:00:19]} 36. Qf2 {[%clk 0:00:54]}  e6 {[%clk 0:00:16]} 37. f5 {[%clk 0:00:52]}  gxf5 {[%clk 0:00:17]} 38. gxf5 {[%clk 0:00:53]}  Rg8+ {[%clk 0:00:18]} 39. Kh1 {[%clk 0:00:33]}  exf5 {[%clk 0:00:10]} 40. Qa7+ {[%clk 0:00:33]}  Ke6 {[%clk 0:00:10]} 41. Qb6+ {[%clk 0:00:25]}  Kxe5 {[%clk 0:00:10]} 42. Qc7+ {[%clk 0:00:21]}  Kf6 {[%clk 0:00:08]} 43. Qb6+ {[%clk 0:00:19]}  Kf7 {[%clk 0:00:08]} 44. Qc7+ {[%clk 0:00:17]}  Kg6 {[%clk 0:00:09]} 45. Kg2 {[%clk 0:00:15]}  Kh5+ {[%clk 0:00:07]} 46. Kf2 {[%clk 0:00:15]}  Qd2+ {[%clk 0:00:07]} 47. Kf1 {[%clk 0:00:16]}  Qg2+ {[%clk 0:00:07]} 0-1


[Site "https://www.chess.com"]

[Event "Titled Tuesday Blitz June 21 Late 2022"]
[White "Adla, Diego"]
[Black "Wartiovaara, Oliver"]
[WhiteFideId "100072"]
[BlackFideId "513024"]
[WhiteElo "2377"]
[BlackElo "1971"]
[Result "1-0"]
[Round "10"]
[TimeControl "180+1"]
[Date "2022.06.22"]
[WhiteClock "0:00:23"]
[BlackClock "0:00:02"]

1. e4 {[%clk 0:02:56]}  Nf6 {[%clk 0:02:57]} 2. e5 {[%clk 0:02:56]}  Nd5 {[%clk 0:02:57]} 3. d4 {[%clk 0:02:56]}  d6 {[%clk 0:02:57]} 4. c4 {[%clk 0:02:57]}  Nb6 {[%clk 0:02:57]} 5. exd6 {[%clk 0:02:56]}  exd6 {[%clk 0:02:57]} 6. Nc3 {[%clk 0:02:55]}  Nc6 {[%clk 0:02:56]} 7. d5 {[%clk 0:02:27]}  Ne5 {[%clk 0:02:55]} 8. f4 {[%clk 0:02:27]}  Ng4 {[%clk 0:02:40]} 9. Nf3 {[%clk 0:02:08]}  Be7 {[%clk 0:02:36]} 10. Bd3 {[%clk 0:02:05]}  Bh4+ {[%clk 0:02:13]} 11. g3 {[%clk 0:02:02]}  Bf6 {[%clk 0:02:12]} 12. O-O {[%clk 0:01:50]}  O-O {[%clk 0:02:06]} 13. Qc2 {[%clk 0:01:30]}  h5 {[%clk 0:01:50]} 14. Bd2 {[%clk 0:01:23]}  g6 {[%clk 0:01:35]} 15. Rae1 {[%clk 0:01:19]}  Nh6 {[%clk 0:01:30]} 16. Ne4 {[%clk 0:00:49]}  Bg7 {[%clk 0:01:27]} 17. Bc3 {[%clk 0:00:49]}  Bf5 {[%clk 0:00:44]} 18. Bxg7 {[%clk 0:00:47]}  Kxg7 {[%clk 0:00:45]} 19. Qc3+ {[%clk 0:00:47]}  f6 {[%clk 0:00:42]} 20. Neg5 {[%clk 0:00:47]}  Re8 {[%clk 0:00:11]} 21. Bxf5 {[%clk 0:00:44]}  Nxf5 {[%clk 0:00:12]} 22. Ne6+ {[%clk 0:00:44]}  Rxe6 {[%clk 0:00:12]} 23. Rxe6 {[%clk 0:00:43]}  Qd7 {[%clk 0:00:12]} 24. Rfe1 {[%clk 0:00:43]}  Qf7 {[%clk 0:00:11]} 25. b3 {[%clk 0:00:42]}  Nd7 {[%clk 0:00:09]} 26. Nd4 {[%clk 0:00:36]}  Nc5 {[%clk 0:00:08]} 27. R6e2 {[%clk 0:00:33]}  a5 {[%clk 0:00:07]} 28. Ne6+ {[%clk 0:00:30]}  Nxe6 {[%clk 0:00:06]} 29. Rxe6 {[%clk 0:00:29]}  b6 {[%clk 0:00:06]} 30. Kg2 {[%clk 0:00:28]}  Rh8 {[%clk 0:00:04]} 31. h3 {[%clk 0:00:23]}  Rh6 {[%clk 0:00:02]} 32. Qd3 {[%clk 0:00:23]} 1-0


[Site "https://www.chess.com"]

[Event "Titled Tuesday Blitz June 21 Late 2022"]
[White "Barria Zuniga, Daniel"]
[Black "Reprintsev, Alexander"]
[WhiteFideId "3400816"]
[BlackFideId "14100541"]
[WhiteElo "2605"]
[BlackElo "2483"]
[Result "0-1"]
[Round "10"]
[TimeControl "180+1"]
[Date "2022.06.22"]
[WhiteClock "0:01:25"]
[BlackClock "0:01:09"]

1. d4 {[%clk 0:03:00]}  d5 {[%clk 0:02:58]} 2. c4 {[%clk 0:03:01]}  e5 {[%clk 0:02:57]} 3. dxe5 {[%clk 0:03:01]}  d4 {[%clk 0:02:56]} 4. Nf3 {[%clk 0:03:01]}  Nc6 {[%clk 0:02:53]} 5. g3 {[%clk 0:03:01]}  Nge7 {[%clk 0:02:53]} 6. Bg2 {[%clk 0:03:01]}  Ng6 {[%clk 0:02:53]} 7. O-O {[%clk 0:03:01]}  Ngxe5 {[%clk 0:02:53]} 8. Nxe5 {[%clk 0:02:50]}  Nxe5 {[%clk 0:02:54]} 9. e3 {[%clk 0:02:50]}  dxe3 {[%clk 0:02:41]} 10. Bxe3 {[%clk 0:02:29]}  Qxd1 {[%clk 0:02:38]} 11. Rxd1 {[%clk 0:02:30]}  Nxc4 {[%clk 0:02:37]} 12. Bf4 {[%clk 0:02:29]}  Bd6 {[%clk 0:02:35]} 13. Bxd6 {[%clk 0:02:27]}  Nxd6 {[%clk 0:02:34]} 14. Nc3 {[%clk 0:02:27]}  Be6 {[%clk 0:02:31]} 15. Rac1 {[%clk 0:02:26]}  O-O-O {[%clk 0:02:24]} 16. b4 {[%clk 0:02:22]}  Nc4 {[%clk 0:02:08]} 17. a4 {[%clk 0:02:14]}  a6 {[%clk 0:02:03]} 18. b5 {[%clk 0:02:11]}  Rxd1+ {[%clk 0:02:00]} 19. Rxd1 {[%clk 0:02:11]}  axb5 {[%clk 0:01:52]} 20. Nxb5 {[%clk 0:02:12]}  c6 {[%clk 0:01:47]} 21. Nc3 {[%clk 0:02:03]}  Rd8 {[%clk 0:01:43]} 22. Rxd8+ {[%clk 0:02:02]}  Kxd8 {[%clk 0:01:43]} 23. Kf1 {[%clk 0:02:03]}  Kc7 {[%clk 0:01:39]} 24. Ke2 {[%clk 0:02:03]}  Bf5 {[%clk 0:01:35]} 25. Ne4 {[%clk 0:01:58]}  Bxe4 {[%clk 0:01:33]} 26. Bxe4 {[%clk 0:01:59]}  h6 {[%clk 0:01:32]} 27. Kd3 {[%clk 0:01:54]}  Nb2+ {[%clk 0:01:31]} 28. Kd4 {[%clk 0:01:52]}  Nxa4 {[%clk 0:01:32]} 29. Bh7 {[%clk 0:01:52]}  Kd6 {[%clk 0:01:29]} 30. Bg8 {[%clk 0:01:48]}  f6 {[%clk 0:01:29]} 31. h4 {[%clk 0:01:47]}  b5 {[%clk 0:01:27]} 32. Ke4 {[%clk 0:01:37]}  c5 {[%clk 0:01:15]} 33. Kf5 {[%clk 0:01:36]}  c4 {[%clk 0:01:14]} 34. Kg6 {[%clk 0:01:34]}  Nc5 {[%clk 0:01:12]} 35. Kxg7 {[%clk 0:01:31]}  c3 {[%clk 0:01:09]} 36. Bh7 {[%clk 0:01:31]}  b4 {[%clk 0:01:09]} 37. Kxf6 {[%clk 0:01:25]}  b3 {[%clk 0:01:09]} 0-1


[Site "https://www.chess.com"]

[Event "Titled Tuesday Blitz June 21 Late 2022"]
[White "Bayo Milagro, Alvaro"]
[Black "Pakleza, Zbigniew"]
[WhiteFideId "22275240"]
[BlackFideId "1119290"]
[WhiteElo "2270"]
[BlackElo "2467"]
[Result "0-1"]
[Round "10"]
[TimeControl "180+1"]
[Date "2022.06.21"]
[WhiteClock "0:00:07"]
[BlackClock "0:00:26"]

1. d4 {[%clk 0:03:00]}  d6 {[%clk 0:02:59]} 2. Nf3 {[%clk 0:02:58]}  Bg4 {[%clk 0:02:59]} 3. e4 {[%clk 0:02:53]}  Nf6 {[%clk 0:02:59]} 4. Nc3 {[%clk 0:02:54]}  e6 {[%clk 0:02:59]} 5. h3 {[%clk 0:02:53]}  Bh5 {[%clk 0:03:00]} 6. g4 {[%clk 0:02:53]}  Bg6 {[%clk 0:03:00]} 7. Bd3 {[%clk 0:02:54]}  Be7 {[%clk 0:02:59]} 8. Qe2 {[%clk 0:02:51]}  c6 {[%clk 0:02:38]} 9. h4 {[%clk 0:02:48]}  d5 {[%clk 0:02:36]} 10. g5 {[%clk 0:02:33]}  Nxe4 {[%clk 0:02:33]} 11. Nxe4 {[%clk 0:02:33]}  dxe4 {[%clk 0:02:33]} 12. Bxe4 {[%clk 0:02:33]}  Nd7 {[%clk 0:02:25]} 13. Bd2 {[%clk 0:02:28]}  Nb6 {[%clk 0:02:16]} 14. O-O-O {[%clk 0:02:27]}  Bxe4 {[%clk 0:02:10]} 15. Qxe4 {[%clk 0:02:27]}  Qd5 {[%clk 0:02:11]} 16. Qxd5 {[%clk 0:02:27]}  cxd5 {[%clk 0:02:11]} 17. Ne5 {[%clk 0:02:15]}  Rc8 {[%clk 0:01:52]} 18. h5 {[%clk 0:01:54]}  f6 {[%clk 0:01:45]} 19. Nf3 {[%clk 0:01:20]}  Nc4 {[%clk 0:01:43]} 20. h6 {[%clk 0:00:57]}  g6 {[%clk 0:01:30]} 21. gxf6 {[%clk 0:00:42]}  Bxf6 {[%clk 0:01:31]} 22. Bg5 {[%clk 0:00:37]}  Rf8 {[%clk 0:01:26]} 23. Rhe1 {[%clk 0:00:37]}  Kd7 {[%clk 0:01:12]} 24. b3 {[%clk 0:00:31]}  Na3 {[%clk 0:00:56]} 25. Rd2 {[%clk 0:00:26]}  Bh8 {[%clk 0:00:50]} 26. Rde2 {[%clk 0:00:21]}  Rxf3 {[%clk 0:00:47]} 27. c4 {[%clk 0:00:19]}  dxc4 {[%clk 0:00:39]} 28. Rxe6 {[%clk 0:00:19]}  cxb3+ {[%clk 0:00:39]} 29. Kb2 {[%clk 0:00:19]}  Nc4+ {[%clk 0:00:38]} 30. Kb1 {[%clk 0:00:17]}  bxa2+ {[%clk 0:00:34]} 31. Kxa2 {[%clk 0:00:17]}  Bxd4 {[%clk 0:00:25]} 32. Re7+ {[%clk 0:00:13]}  Kd6 {[%clk 0:00:26]} 33. R1e6+ {[%clk 0:00:13]}  Kd5 {[%clk 0:00:26]} 34. Re2 {[%clk 0:00:10]}  Ra3+ {[%clk 0:00:25]} 35. Kb1 {[%clk 0:00:11]}  Nd2+ {[%clk 0:00:25]} 36. Bxd2 {[%clk 0:00:07]}  Ra1# {[%clk 0:00:26]} 0-1


[Site "https://www.chess.com"]

[Event "Titled Tuesday Blitz June 21 Late 2022"]
[White "Bilych, Olexiy"]
[Black "Dobre, Claudiu-Cristian"]
[WhiteFideId "14156504"]
[BlackFideId "1211854"]
[WhiteElo "2189"]
[BlackElo "2207"]
[Result "1-0"]
[Round "10"]
[TimeControl "180+1"]
[Date "2022.06.21"]
[WhiteClock "0:00:51"]
[BlackClock "0:00:05"]

1. e4 {[%clk 0:03:00]}  Nc6 {[%clk 0:02:59]} 2. Nf3 {[%clk 0:03:00]}  d6 {[%clk 0:02:59]} 3. d4 {[%clk 0:02:58]}  Nf6 {[%clk 0:02:59]} 4. Bd3 {[%clk 0:02:57]}  e5 {[%clk 0:02:58]} 5. c3 {[%clk 0:02:56]}  g6 {[%clk 0:02:57]} 6. O-O {[%clk 0:02:55]}  Bg7 {[%clk 0:02:57]} 7. h3 {[%clk 0:02:53]}  O-O {[%clk 0:02:57]} 8. Be3 {[%clk 0:02:53]}  d5 {[%clk 0:02:55]} 9. exd5 {[%clk 0:02:40]}  Nxd5 {[%clk 0:02:43]} 10. Bg5 {[%clk 0:02:40]}  Nde7 {[%clk 0:02:21]} 11. dxe5 {[%clk 0:02:31]}  Bf5 {[%clk 0:02:03]} 12. Bc4 {[%clk 0:02:13]}  h6 {[%clk 0:01:55]} 13. Bf6 {[%clk 0:02:11]}  Qxd1 {[%clk 0:01:40]} 14. Rxd1 {[%clk 0:02:11]}  Rad8 {[%clk 0:01:37]} 15. Na3 {[%clk 0:02:09]}  Be6 {[%clk 0:01:27]} 16. Bxe6 {[%clk 0:01:56]}  fxe6 {[%clk 0:01:22]} 17. Bxg7 {[%clk 0:01:39]}  Kxg7 {[%clk 0:01:20]} 18. Nb5 {[%clk 0:01:40]}  Nd5 {[%clk 0:01:05]} 19. c4 {[%clk 0:01:39]}  Nf4 {[%clk 0:01:05]} 20. Nxc7 {[%clk 0:01:38]}  Rc8 {[%clk 0:01:01]} 21. Nb5 {[%clk 0:01:31]}  Rcd8 {[%clk 0:00:40]} 22. Rxd8 {[%clk 0:01:28]}  Rxd8 {[%clk 0:00:40]} 23. Kf1 {[%clk 0:01:16]}  a6 {[%clk 0:00:39]} 24. Nd6 {[%clk 0:01:11]}  Rd7 {[%clk 0:00:38]} 25. Rd1 {[%clk 0:01:05]}  Kf8 {[%clk 0:00:24]} 26. h4 {[%clk 0:01:02]}  b6 {[%clk 0:00:22]} 27. g3 {[%clk 0:01:02]}  Nh5 {[%clk 0:00:22]} 28. Ke2 {[%clk 0:01:01]}  Ng7 {[%clk 0:00:22]} 29. Ne4 {[%clk 0:00:53]}  Rxd1 {[%clk 0:00:20]} 30. Kxd1 {[%clk 0:00:54]}  Nf5 {[%clk 0:00:19]} 31. Ke2 {[%clk 0:00:54]}  Nfd4+ {[%clk 0:00:19]} 32. Nxd4 {[%clk 0:00:54]}  Nxd4+ {[%clk 0:00:19]} 33. Kd3 {[%clk 0:00:53]}  Nc6 {[%clk 0:00:19]} 34. f4 {[%clk 0:00:53]}  Nb4+ {[%clk 0:00:19]} 35. Kd4 {[%clk 0:00:52]}  Nxa2 {[%clk 0:00:19]} 36. c5 {[%clk 0:00:51]}  bxc5+ {[%clk 0:00:18]} 37. Nxc5 {[%clk 0:00:52]}  Ke7 {[%clk 0:00:12]} 38. Nxa6 {[%clk 0:00:53]}  Nc1 {[%clk 0:00:12]} 39. b4 {[%clk 0:00:52]}  Ne2+ {[%clk 0:00:12]} 40. Kc5 {[%clk 0:00:53]}  Nxg3 {[%clk 0:00:12]} 41. b5 {[%clk 0:00:52]}  Kd7 {[%clk 0:00:11]} 42. b6 {[%clk 0:00:52]}  Ne4+ {[%clk 0:00:09]} 43. Kd4 {[%clk 0:00:53]}  Nd2 {[%clk 0:00:06]} 44. b7 {[%clk 0:00:51]}  Nb3+ {[%clk 0:00:05]} 45. Kc3 {[%clk 0:00:51]} 1-0


[Site "https://www.chess.com"]

[Event "Titled Tuesday Blitz June 21 Late 2022"]
[White "Cappelletto, Joshuaede"]
[Black "Zhurbinsky, David"]
[WhiteFideId "2824383"]
[BlackFideId "2072904"]
[WhiteElo "1761"]
[BlackElo "2570"]
[Result "1-0"]
[Round "10"]
[TimeControl "180+1"]
[Date "2022.06.21"]
[WhiteClock "0:00:29"]
[BlackClock "0:00:03"]

1. Nf3 {[%clk 0:03:00]}  Nf6 {[%clk 0:02:59]} 2. g3 {[%clk 0:03:00]}  e6 {[%clk 0:02:57]} 3. Bg2 {[%clk 0:03:00]}  d5 {[%clk 0:02:57]} 4. O-O {[%clk 0:03:01]}  c5 {[%clk 0:02:58]} 5. c4 {[%clk 0:02:59]}  d4 {[%clk 0:02:58]} 6. e3 {[%clk 0:02:59]}  Nc6 {[%clk 0:02:58]} 7. exd4 {[%clk 0:02:56]}  cxd4 {[%clk 0:02:56]} 8. d3 {[%clk 0:02:54]}  Bd6 {[%clk 0:02:50]} 9. Bg5 {[%clk 0:02:48]}  h6 {[%clk 0:02:38]} 10. Bxf6 {[%clk 0:02:47]}  Qxf6 {[%clk 0:02:39]} 11. Nbd2 {[%clk 0:02:48]}  Bc7 {[%clk 0:02:31]} 12. a3 {[%clk 0:02:09]}  O-O {[%clk 0:02:25]} 13. b4 {[%clk 0:02:09]}  a6 {[%clk 0:02:17]} 14. Rb1 {[%clk 0:02:04]}  e5 {[%clk 0:02:15]} 15. a4 {[%clk 0:02:03]}  Bf5 {[%clk 0:02:10]} 16. Qb3 {[%clk 0:01:57]}  a5 {[%clk 0:01:45]} 17. b5 {[%clk 0:01:54]}  Nb4 {[%clk 0:01:43]} 18. Ne1 {[%clk 0:01:53]}  Rab8 {[%clk 0:01:37]} 19. Ne4 {[%clk 0:01:52]}  Qg6 {[%clk 0:01:33]} 20. Nc2 {[%clk 0:01:51]}  Bxe4 {[%clk 0:01:10]} 21. Bxe4 {[%clk 0:01:46]}  f5 {[%clk 0:01:08]} 22. Bg2 {[%clk 0:01:39]}  Rbe8 {[%clk 0:00:49]} 23. Nxb4 {[%clk 0:01:34]}  axb4 {[%clk 0:00:50]} 24. c5+ {[%clk 0:01:30]}  Kh8 {[%clk 0:00:47]} 25. b6 {[%clk 0:01:26]}  Bb8 {[%clk 0:00:46]} 26. a5 {[%clk 0:01:26]}  e4 {[%clk 0:00:42]} 27. Rbe1 {[%clk 0:01:21]}  e3 {[%clk 0:00:38]} 28. f4 {[%clk 0:01:03]}  Rc8 {[%clk 0:00:34]} 29. Qxb4 {[%clk 0:00:59]}  Rfe8 {[%clk 0:00:04]} 30. Bxb7 {[%clk 0:00:54]}  Rcd8 {[%clk 0:00:05]} 31. a6 {[%clk 0:00:50]}  Qf6 {[%clk 0:00:02]} 32. a7 {[%clk 0:00:48]}  Bxa7 {[%clk 0:00:02]} 33. bxa7 {[%clk 0:00:49]}  Qe7 {[%clk 0:00:02]} 34. Re2 {[%clk 0:00:44]}  Qc7 {[%clk 0:00:01]} 35. Qb6 {[%clk 0:00:41]}  Qd7 {[%clk 0:00:01]} 36. c6 {[%clk 0:00:38]}  Qe7 {[%clk 0:00:02]} 37. c7 {[%clk 0:00:38]}  Rd7 {[%clk 0:00:03]} 38. Rc1 {[%clk 0:00:34]}  Kh7 {[%clk 0:00:03]} 39. a8=Q {[%clk 0:00:31]}  Rxa8 {[%clk 0:00:03]} 40. Bxa8 {[%clk 0:00:32]}  Qa3 {[%clk 0:00:03]} 41. c8=Q {[%clk 0:00:32]}  Qxd3 {[%clk 0:00:03]} 42. Bf3 {[%clk 0:00:31]}  Re7 {[%clk 0:00:03]} 43. Qb1 {[%clk 0:00:29]}  Qxb1 {[%clk 0:00:02]} 44. Rxb1 {[%clk 0:00:30]}  d3 {[%clk 0:00:03]} 45. Qxf5+ {[%clk 0:00:30]}  Kh8 {[%clk 0:00:03]} 46. Rb8+ {[%clk 0:00:28]}  Re8 {[%clk 0:00:03]} 47. Rxe8# {[%clk 0:00:29]} 1-0


[Site "https://www.chess.com"]

[Event "Titled Tuesday Blitz June 21 Late 2022"]
[White "Clarke, Brandon G I"]
[Black "Ivic, Velimir"]
[WhiteFideId "400319"]
[BlackFideId "950122"]
[WhiteElo "2414"]
[BlackElo "2610"]
[Result "1-0"]
[Round "10"]
[TimeControl "180+1"]
[Date "2022.06.21"]
[WhiteClock "0:00:03"]
[BlackClock "0:00:01"]

1. e4 {[%clk 0:03:00]}  g6 {[%clk 0:03:00]} 2. d4 {[%clk 0:03:00]}  Bg7 {[%clk 0:03:01]} 3. Nf3 {[%clk 0:03:00]}  a6 {[%clk 0:03:02]} 4. Bd3 {[%clk 0:02:55]}  b6 {[%clk 0:03:01]} 5. Nc3 {[%clk 0:02:49]}  Bb7 {[%clk 0:03:02]} 6. O-O {[%clk 0:02:48]}  e6 {[%clk 0:03:02]} 7. Re1 {[%clk 0:02:38]}  h6 {[%clk 0:03:01]} 8. Be3 {[%clk 0:02:34]}  d6 {[%clk 0:03:01]} 9. Qd2 {[%clk 0:02:34]}  Ne7 {[%clk 0:03:01]} 10. a4 {[%clk 0:02:32]}  Nd7 {[%clk 0:03:01]} 11. h3 {[%clk 0:02:30]}  Nf6 {[%clk 0:03:01]} 12. Rad1 {[%clk 0:02:23]}  g5 {[%clk 0:03:01]} 13. e5 {[%clk 0:02:13]}  Nfd5 {[%clk 0:03:00]} 14. Ne4 {[%clk 0:02:08]}  Nxe3 {[%clk 0:02:56]} 15. Qxe3 {[%clk 0:02:02]}  Nd5 {[%clk 0:02:54]} 16. Qd2 {[%clk 0:02:02]}  Nf4 {[%clk 0:02:54]} 17. Bf1 {[%clk 0:01:53]}  Qe7 {[%clk 0:02:42]} 18. exd6 {[%clk 0:01:53]}  cxd6 {[%clk 0:02:41]} 19. Qb4 {[%clk 0:01:53]}  Bxe4 {[%clk 0:02:29]} 20. Rxe4 {[%clk 0:01:53]}  d5 {[%clk 0:02:25]} 21. Qxb6 {[%clk 0:01:45]}  O-O {[%clk 0:02:23]} 22. Re3 {[%clk 0:01:39]}  Rfb8 {[%clk 0:02:17]} 23. Qc6 {[%clk 0:01:31]}  Rc8 {[%clk 0:02:16]} 24. Qb6 {[%clk 0:01:31]}  Rxc2 {[%clk 0:02:13]} 25. g3 {[%clk 0:01:28]}  Ng6 {[%clk 0:02:10]} 26. Rc3 {[%clk 0:01:27]}  Rxc3 {[%clk 0:02:00]} 27. bxc3 {[%clk 0:01:28]}  Qd7 {[%clk 0:02:00]} 28. Ra1 {[%clk 0:01:20]}  Qc8 {[%clk 0:01:58]} 29. Ra3 {[%clk 0:01:13]}  Ne7 {[%clk 0:01:57]} 30. a5 {[%clk 0:01:11]}  Nf5 {[%clk 0:01:51]} 31. Bd3 {[%clk 0:01:08]}  Ne7 {[%clk 0:01:17]} 32. Kg2 {[%clk 0:01:08]}  Rb8 {[%clk 0:01:11]} 33. Qxa6 {[%clk 0:01:06]}  Qc7 {[%clk 0:01:12]} 34. c4 {[%clk 0:00:52]}  Nc6 {[%clk 0:01:12]} 35. cxd5 {[%clk 0:00:49]}  Nxd4 {[%clk 0:00:31]} 36. Nxd4 {[%clk 0:00:32]}  Qc5 {[%clk 0:00:31]} 37. Nc6 {[%clk 0:00:21]}  Qxd5+ {[%clk 0:00:31]} 38. Kh2 {[%clk 0:00:20]}  Qc5 {[%clk 0:00:27]} 39. Nxb8 {[%clk 0:00:11]}  Qxf2+ {[%clk 0:00:27]} 40. Kh1 {[%clk 0:00:11]}  Bd4 {[%clk 0:00:18]} 41. Qc8+ {[%clk 0:00:10]}  Kg7 {[%clk 0:00:18]} 42. Qc1 {[%clk 0:00:11]}  Qf3+ {[%clk 0:00:16]} 43. Kh2 {[%clk 0:00:11]}  Bf2 {[%clk 0:00:05]} 44. Be4 {[%clk 0:00:06]}  Qxe4 {[%clk 0:00:04]} 45. Qf1 {[%clk 0:00:04]}  Bc5 {[%clk 0:00:04]} 46. Rf3 {[%clk 0:00:04]}  Qc2+ {[%clk 0:00:04]} 47. Qg2 {[%clk 0:00:04]}  Qb1 {[%clk 0:00:02]} 48. Nd7 {[%clk 0:00:04]}  Bd4 {[%clk 0:00:02]} 49. Nb6 {[%clk 0:00:03]}  Qb5 {[%clk 0:00:02]} 50. Qd2 {[%clk 0:00:02]}  e5 {[%clk 0:00:02]} 51. Qd3 {[%clk 0:00:02]}  Qb2+ {[%clk 0:00:02]} 52. Kh1 {[%clk 0:00:03]}  Qc1+ {[%clk 0:00:01]} 53. Qf1 {[%clk 0:00:03]} 1-0


[Site "https://www.chess.com"]

[Event "Titled Tuesday Blitz June 21 Late 2022"]
[White "Colpe, Malte"]
[Black "Jian, Alex"]
[WhiteFideId "24623075"]
[BlackFideId "30901022"]
[WhiteElo "2524"]
[BlackElo "2451"]
[Result "1/2-1/2"]
[Round "10"]
[TimeControl "180+1"]
[Date "2022.06.22"]
[WhiteClock "0:00:02"]
[BlackClock "0:00:03"]

1. d4 {[%clk 0:02:59]}  d5 {[%clk 0:02:59]} 2. c4 {[%clk 0:02:59]}  c6 {[%clk 0:02:59]} 3. Nc3 {[%clk 0:02:59]}  Nf6 {[%clk 0:02:59]} 4. e3 {[%clk 0:02:56]}  g6 {[%clk 0:02:46]} 5. Nf3 {[%clk 0:02:53]}  Bg7 {[%clk 0:02:46]} 6. Be2 {[%clk 0:02:53]}  O-O {[%clk 0:02:46]} 7. O-O {[%clk 0:02:53]}  dxc4 {[%clk 0:02:40]} 8. Bxc4 {[%clk 0:02:53]}  Nbd7 {[%clk 0:02:41]} 9. e4 {[%clk 0:02:44]}  b5 {[%clk 0:02:19]} 10. Bd3 {[%clk 0:02:44]}  e5 {[%clk 0:02:09]} 11. dxe5 {[%clk 0:02:37]}  Ng4 {[%clk 0:02:08]} 12. Bg5 {[%clk 0:02:38]}  Qb6 {[%clk 0:02:03]} 13. e6 {[%clk 0:02:16]}  fxe6 {[%clk 0:02:01]} 14. h3 {[%clk 0:02:12]}  Nge5 {[%clk 0:01:54]} 15. Nxe5 {[%clk 0:02:12]}  Nxe5 {[%clk 0:01:53]} 16. Be2 {[%clk 0:02:12]}  Bb7 {[%clk 0:01:38]} 17. Kh1 {[%clk 0:02:10]}  Rxf2 {[%clk 0:01:30]} 18. Qd6 {[%clk 0:02:08]}  Re8 {[%clk 0:01:09]} 19. Bf4 {[%clk 0:01:45]}  Nf7 {[%clk 0:00:59]} 20. Qd7 {[%clk 0:01:44]}  Rd8 {[%clk 0:00:31]} 21. Qxe6 {[%clk 0:01:40]}  Bc8 {[%clk 0:00:25]} 22. Qb3 {[%clk 0:01:38]}  Bxc3 {[%clk 0:00:25]} 23. bxc3 {[%clk 0:01:26]}  Rxe2 {[%clk 0:00:24]} 24. Bg5 {[%clk 0:01:06]}  Rd7 {[%clk 0:00:20]} 25. Qe6 {[%clk 0:01:01]}  Rf2 {[%clk 0:00:07]} 26. Qe8+ {[%clk 0:00:56]}  Kg7 {[%clk 0:00:07]} 27. Qxc8 {[%clk 0:00:54]}  Rdd2 {[%clk 0:00:07]} 28. Qe6 {[%clk 0:00:47]}  Nxg5 {[%clk 0:00:04]} 29. Qe5+ {[%clk 0:00:38]}  Kh6 {[%clk 0:00:05]} 30. h4 {[%clk 0:00:35]}  Nf7 {[%clk 0:00:03]} 31. Qe7 {[%clk 0:00:31]}  Rxg2 {[%clk 0:00:02]} 32. Qf8+ {[%clk 0:00:08]}  Kh5 {[%clk 0:00:03]} 33. Rf5+ {[%clk 0:00:07]}  gxf5 {[%clk 0:00:02]} 34. Qxf7+ {[%clk 0:00:07]}  Kh6 {[%clk 0:00:02]} 35. Qf6+ {[%clk 0:00:06]}  Rg6 {[%clk 0:00:02]} 36. Qf8+ {[%clk 0:00:06]}  Rg7 {[%clk 0:00:02]} 37. Qf6+ {[%clk 0:00:05]}  Rg6 {[%clk 0:00:02]} 38. Qf8+ {[%clk 0:00:04]}  Kh5 {[%clk 0:00:02]} 39. Qxf5+ {[%clk 0:00:04]}  Kh6 {[%clk 0:00:02]} 40. Qf8+ {[%clk 0:00:04]}  Kh5 {[%clk 0:00:02]} 41. Qf5+ {[%clk 0:00:02]}  Kh6 {[%clk 0:00:03]} 42. Qf8+ {[%clk 0:00:02]}  Rg7 {[%clk 0:00:03]} 43. Qf6+ {[%clk 0:00:02]}  Rg6 {[%clk 0:00:03]} 44. Qf8+ {[%clk 0:00:02]} 1/2-1/2


[Site "https://www.chess.com"]